bitfinex/quotes_SOLUSD_20250531
["timestamp","ask_amount","ask_price","bid_price","bid_amount"]
[1748699520679,1.0,154.74,154.72,14.07739928]
[1748699520972,1.0,154.74,154.7,6.46377772]
[1748699520973,1.0,154.74,154.73,14.07739928]
[1748699521165,1.0,154.74,154.73,20.54027008]
[1748699521747,1.0,154.74,154.73,39.18991894]
[1748699522669,1.0,154.74,154.73,6.4628708]
[1748699522968,1.0,154.74,154.71,94.26363414]
[1748699523181,1.0,154.74,154.7,16.80395351]
[1748699523347,1.0,154.74,154.73,14.07739928]
[1748699525151,1.0,154.74,154.73,20.54027008]
[1748699527254,1.0,154.74,154.73,39.18991894]
[1748699529278,1.0,154.74,154.73,20.54027008]
[1748699530266,1.0,154.74,154.73,39.18991894]
[1748699530966,1.0,154.74,154.73,25.11251966]
[1748699531170,1.0,154.74,154.73,39.18991894]
[1748699531392,1.0,154.74,154.73,166.83208051]
[1748699531565,15.68812199,154.84,154.8,14.07739928]
[1748699532157,26.0,154.83,154.8,14.07739928]
[1748699532563,15.68812199,154.84,154.8,14.07739928]
[1748699533697,41.68812199,154.84,154.8,14.07739928]
[1748699534484,55.76552127,154.84,154.8,14.07739928]
[1748699534853,41.68812199,154.84,154.8,20.53727283]
[1748699535082,41.68812199,154.84,154.81,14.07739928]
[1748699535675,41.68812199,154.84,154.8,20.53727283]
[1748699536564,41.68812199,154.84,154.81,14.07739928]
[1748699537175,26.0,154.84,154.81,14.07739928]
[1748699537777,26.0,154.84,154.82,6.4591138]
[1748699538102,26.0,154.84,154.8,87.8]
[1748699538393,26.0,154.84,154.81,14.07739928]
[1748699538598,26.0,154.84,154.8,87.8]
[1748699538768,26.0,154.84,154.81,14.07739928]
[1748699540214,26.0,154.84,154.81,20.53691362]
[1748699542612,26.0,154.84,154.8,87.8]
[1748699542779,40.07739928,154.84,154.8,14.07739928]
[1748699543295,26.0,154.84,154.8,14.07739928]
[1748699544381,26.0,154.84,154.81,14.07739928]
[1748699546877,26.0,154.84,154.81,20.53685212]
[1748699547806,26.0,154.84,154.81,14.07739928]
[1748699547988,26.0,154.84,154.81,20.53690058]
[1748699550195,26.0,154.84,154.81,14.07739928]
[1748699550711,14.07739928,154.83,154.79,14.07739928]
[1748699551207,26.0,154.84,154.8,14.07739928]
[1748699551509,40.07739928,154.84,154.8,14.07739928]
[1748699551710,46.53577937,154.84,154.79,14.07739928]
[1748699552208,40.07739928,154.84,154.8,14.07739928]
[1748699553087,46.53571656,154.84,154.8,14.07739928]
[1748699554390,40.07739928,154.84,154.8,20.5372808]
[1748699554598,26.0,154.84,154.8,20.5372808]
[1748699554797,26.0,154.84,154.81,14.07739928]
[1748699558912,26.0,154.84,154.8,14.07739928]
[1748699559707,26.0,154.84,154.79,20.53776493]
[1748699559708,40.07739928,154.84,154.79,20.53776493]
[1748699561530,26.0,154.84,154.8,14.07739928]
[1748699562343,26.0,154.84,154.81,14.07739928]
[1748699563023,26.0,154.84,154.82,6.4591138]
[1748699565223,26.0,154.84,154.81,6.45939125]
[1748699567124,26.0,154.81,154.78,87.8]
[1748699567310,26.0,154.8,154.75,14.07739928]
[1748699567508,26.0,154.8,154.76,14.07739928]
[1748699567721,26.0,154.79,154.76,14.07739928]
[1748699568135,26.0,154.79,154.73,18.64964886]
[1748699568429,14.07739928,154.81,154.76,14.07739928]
[1748699568430,40.07739928,154.81,154.76,14.07739928]
[1748699569208,40.07739928,154.81,154.76,20.53895332]
[1748699570335,26.0,154.81,154.77,14.07739928]
[1748699572611,26.0,154.81,154.77,20.53846408]
[1748699572814,11.50857286,154.84,154.8,14.07739928]
[1748699573015,11.50857286,154.84,154.81,14.07739928]
[1748699573016,37.50857286,154.84,154.81,14.07739928]
[1748699573915,37.50857286,154.84,154.81,20.53682787]
[1748699574119,26.0,154.84,154.82,14.07739928]
[1748699574746,26.0,154.84,154.81,14.07739928]
[1748699575452,40.07739928,154.86,154.82,14.07739928]
[1748699575615,14.07739928,154.86,154.81,14.07739928]
[1748699576020,40.07739928,154.86,154.81,20.53671991]
[1748699578159,46.5348982,154.86,154.81,20.53671991]
[1748699579449,14.07739928,154.85,154.81,14.07739928]
[1748699579856,14.07739928,154.85,154.81,20.53688844]
[1748699580022,32.45749892,154.86,154.81,20.53688844]
[1748699580023,46.5348982,154.86,154.81,20.53688844]
[1748699580225,40.07739928,154.86,154.81,20.53688844]
[1748699580858,46.53498645,154.86,154.81,20.53688844]
[1748699581046,40.07739928,154.86,154.81,20.53688844]
[1748699581563,46.53493623,154.86,154.81,20.53688844]
[1748699582535,32.45753695,154.86,154.81,20.53688844]
[1748699582733,40.07739928,154.86,154.81,20.53688844]
[1748699583946,46.53499867,154.86,154.81,20.53688844]
[1748699584546,26.0,154.86,154.81,20.53688844]
[1748699584748,26.0,154.86,154.83,14.07739928]
[1748699585153,26.0,154.86,154.84,6.45827951]
[1748699585455,26.0,154.88,154.84,20.53567879]
[1748699585666,26.0,154.87,154.85,14.07739928]
[1748699586748,10.32,154.9,154.85,14.07739928]
[1748699586954,14.07739928,154.93,154.88,14.07739928]
[1748699587151,14.07739928,154.93,154.89,6.45619471]
[1748699587542,26.0,154.92,154.89,6.45619471]
[1748699587939,14.07739928,154.93,154.88,20.5338652]
[1748699588250,20.53193634,154.93,154.88,20.5338652]
[1748699588456,26.0,154.92,154.88,20.5338652]
[1748699590159,46.53240091,154.92,154.87,20.53430358]
[1748699593177,14.07739928,154.9,154.85,14.07739928]
[1748699594280,14.07739928,154.9,154.85,20.53517974]
[1748699594478,20.53335871,154.9,154.85,14.07739928]
[1748699594772,40.07739928,154.86,154.81,101.87739928]
[1748699595281,40.07739928,154.86,154.82,14.07739928]
[1748699595282,26.0,154.86,154.82,14.07739928]
[1748699595778,26.0,154.86,154.82,20.53626734]
[1748699596676,14.07739928,154.88,154.83,14.07739928]
[1748699596865,40.07739928,154.88,154.83,14.07739928]
[1748699597373,14.07739928,154.9,154.85,14.07739928]
[1748699597678,40.07739928,154.9,154.85,14.07739928]
[1748699597980,26.0,154.9,154.86,14.07739928]
[1748699598160,14.07739928,154.91,154.86,14.07739928]
[1748699598362,14.07739928,154.9,154.85,20.53497303]
[1748699598672,26.0,154.9,154.86,14.07739928]
[1748699599866,26.0,154.9,154.86,20.53481351]
[1748699600256,14.07739928,154.9,154.85,20.53516497]
[1748699603970,40.07739928,154.9,154.85,6.45776569]
[1748699604286,40.07739928,154.9,154.85,20.53516497]
[1748699606188,26.0,154.9,154.86,14.07739928]
[1748699606563,26.0,154.9,154.85,20.53516497]
[1748699607783,40.07739928,154.9,154.85,20.53516497]
[1748699608566,26.0,154.9,154.85,20.53516497]
[1748699608880,26.0,154.9,154.85,6.45776569]
[1748699609072,46.53320315,154.9,154.85,20.53516497]
[1748699610260,26.0,154.9,154.85,20.53516497]
[1748699610568,40.07739928,154.9,154.85,20.53516497]
[1748699610972,14.07739928,154.87,154.83,98.12]
[1748699611286,14.07739928,154.87,154.83,87.8]
[1748699611672,14.07739928,154.85,154.83,87.8]
[1748699611865,14.07739928,154.85,154.81,6.45949762]
[1748699613205,24.38540687,154.9,154.84,14.07739928]
[1748699613206,14.07739928,154.9,154.84,14.07739928]
[1748699613482,40.07739928,154.9,154.86,14.07739928]
[1748699613672,26.0,154.9,154.86,14.07739928]
[1748699613877,14.07739928,154.91,154.86,14.07739928]
[1748699614471,40.07739928,154.91,154.86,14.07739928]
[1748699614670,26.0,154.91,154.87,14.07739928]
[1748699615592,26.0,154.91,154.87,20.53418188]
[1748699616574,40.07739928,154.91,154.86,20.53467566]
[1748699616975,46.53287606,154.91,154.86,20.53467566]
[1748699618971,46.53287606,154.91,154.84,6.45827951]
[1748699619170,46.53287606,154.91,154.86,14.07739928]
[1748699619678,14.07739928,154.9,154.85,14.07739928]
[1748699619987,14.07739928,154.9,154.8,94.25988323]
[1748699619988,14.07739928,154.86,154.8,94.25988323]
[1748699620176,26.0,154.88,154.79,94.26029363]
[1748699620177,14.07739928,154.83,154.79,94.26029363]
[1748699620375,14.07739928,154.82,154.79,94.26029363]
[1748699620586,26.0,154.85,154.78,118.65809665]
[1748699620587,14.07739928,154.83,154.78,118.65809665]
[1748699620994,65.64,154.85,154.76,18.64964886]
[1748699620995,14.07739928,154.8,154.76,6.46123097]
[1748699621372,6.45943008,154.82,154.76,20.53863025]
[1748699621373,14.07739928,154.81,154.76,20.53863025]
[1748699621766,14.07739928,154.79,154.75,8.03781396]
[1748699622070,14.07739928,154.79,154.75,6.46191396]
[1748699622270,14.07739928,154.78,154.73,20.53988511]
[1748699622678,14.07739928,154.76,154.71,94.26332494]
[1748699623003,14.07739928,154.74,154.7,16.78405413]
[1748699623379,14.07739928,154.74,154.7,6.46405413]
[1748699623988,14.07739928,154.75,154.7,20.54145341]
[1748699624196,14.07739928,154.76,154.71,14.07739928]
[1748699624393,53.73739928,154.77,154.72,14.07739928]
[1748699624596,14.07739928,154.76,154.71,14.07739928]
[1748699625296,14.07739928,154.76,154.71,20.54085524]
[1748699626478,53.73739928,154.77,154.72,14.07739928]
[1748699627009,14.07739928,154.76,154.71,20.54085524]
[1748699630103,53.73739928,154.77,154.72,14.07739928]
[1748699631307,53.73739928,154.77,154.72,20.54054359]
[1748699631601,14.07739928,154.76,154.72,6.46314431]
[1748699632397,53.73739928,154.77,154.72,20.54054359]
[1748699636502,14.07739928,154.76,154.72,6.46314431]
[1748699637811,53.73739928,154.77,154.72,20.54054359]
[1748699640498,14.07739928,154.75,154.7,14.07739928]
[1748699640745,14.07739928,154.75,154.7,20.54152339]
[1748699640905,14.07739928,154.76,154.7,22.62443438]
[1748699641098,14.07739928,154.76,154.71,14.07739928]
[1748699642006,14.07739928,154.76,154.72,6.46328852]
[1748699643620,162.6991043,154.84,154.75,14.07739928]
[1748699643621,14.07739928,154.81,154.75,14.07739928]
[1748699643806,10.32,154.83,154.77,14.07739928]
[1748699643807,14.07739928,154.82,154.77,14.07739928]
[1748699644011,40.07739928,154.82,154.78,6.46078304]
[1748699644802,14.07739928,154.82,154.78,6.46078304]
[1748699645000,40.07739928,154.82,154.78,6.46078304]
[1748699645848,79.75739928,154.82,154.78,6.46078304]
[1748699647526,86.21651886,154.82,154.77,14.07739928]
[1748699647707,14.07739928,154.81,154.76,14.07739928]
[1748699647904,32.45911958,154.82,154.75,14.07739928]
[1748699647905,14.07739928,154.8,154.75,14.07739928]
[1748699649337,14.07739928,154.8,154.76,6.46161798]
[1748699650531,14.07739928,154.81,154.76,20.53901726]
[1748699651510,20.53696161,154.81,154.76,20.53901726]
[1748699651817,14.07739928,154.8,154.76,6.46161798]
[1748699652116,26.0,154.79,154.76,20.53901726]
[1748699656520,26.0,154.79,154.76,14.07739928]
[1748699656833,26.0,154.79,154.76,20.53897382]
[1748699657228,26.0,154.79,154.76,6.46157454]
[1748699657835,26.0,154.79,154.75,20.53932873]
[1748699658017,14.07739928,154.78,154.73,122.11724814]
[1748699658528,14.07739928,154.78,154.73,34.31724814]
[1748699659126,14.07739928,154.78,154.74,6.46228833]
[1748699659445,14.07739928,154.77,154.72,24.39739928]
[1748699661034,14.07739928,154.77,154.72,30.86055628]
[1748699664723,14.07739928,154.77,154.73,14.07739928]
[1748699665249,20.5386691,154.77,154.73,14.07739928]
[1748699665414,14.07739928,154.75,154.72,16.783157]
[1748699665613,14.07739928,154.75,154.72,6.463157]
[1748699666350,14.07739928,154.75,154.71,6.46370628]
[1748699666731,14.07739928,154.75,154.7,20.54134974]
[1748699666923,14.07739928,154.75,154.7,6.46395046]
[1748699667139,14.07739928,154.75,154.7,20.54134974]
[1748699667749,14.07739928,154.75,154.7,6.46395046]
[1748699667951,14.07739928,154.75,154.7,20.54134974]
[1748699670051,26.0,154.72,154.69,6.46426641]
[1748699670959,26.0,154.74,154.71,14.07739928]
[1748699672038,26.0,154.74,154.71,20.54074094]
[1748699672569,26.0,154.74,154.72,14.07739928]
[1748699673634,26.0,154.74,154.71,20.54074094]
[1748699675949,26.0,154.74,154.72,20.54047611]
[1748699676362,26.0,154.74,154.71,20.54098278]
[1748699677065,40.07739928,154.74,154.69,108.34192457]
[1748699677265,26.0,154.74,154.7,14.07739928]
[1748699677565,26.0,154.74,154.72,14.07739928]
[1748699677867,10.32,154.78,154.73,14.07739928]
[1748699678045,10.32,154.78,154.7,18.64964886]
[1748699678046,39.66,154.79,154.75,14.07739928]
[1748699678371,40.07739928,154.79,154.74,20.53985242]
[1748699681371,26.0,154.79,154.74,20.53985242]
[1748699681964,26.0,154.79,154.75,14.07739928]
[1748699684849,14.07739928,154.78,154.73,20.53991172]
[1748699691679,20.53823669,154.78,154.73,20.53991172]
[1748699692173,20.53823669,154.78,154.72,6.46321041]
[1748699692377,40.07739928,154.75,154.71,94.26360187]
[1748699692554,40.07739928,154.75,154.7,10.3]
[1748699692555,14.07739928,154.74,154.7,10.3]
[1748699693053,14.07739928,154.74,154.69,20.54167914]
[1748699693872,20.54010909,154.74,154.69,20.54167914]
[1748699699581,20.54010909,154.74,154.69,14.07739928]
[1748699699763,20.54010909,154.74,154.69,20.54181217]
[1748699700262,40.07739928,154.71,154.66,25.93189928]
[1748699700581,26.0,154.73,154.69,14.07739928]
[1748699700796,26.0,154.73,154.68,14.07739928]
[1748699700959,40.07739928,154.73,154.68,14.07739928]
[1748699701299,26.0,154.72,154.68,14.07739928]
[1748699701789,26.0,154.72,154.68,20.54208453]
[1748699702596,39.66,154.75,154.7,14.07739928]
[1748699702762,1.53,154.79,154.73,14.07739928]
[1748699702960,39.66,154.79,154.75,14.07739928]
[1748699703393,26.0,154.77,154.75,14.07739928]
[1748699703585,14.07739928,154.8,154.75,14.07739928]
[1748699703893,26.0,154.79,154.75,20.53930087]
[1748699704686,26.0,154.79,154.75,14.07739928]
[1748699704892,40.07739928,154.79,154.74,20.53969661]
[1748699706085,26.0,154.79,154.75,14.07739928]
[1748699707584,26.0,154.79,154.75,20.53930339]
[1748699707788,53.71739928,154.81,154.76,14.07739928]
[1748699707986,26.0,154.8,154.76,14.07739928]
[1748699708692,26.0,154.79,154.75,20.53930339]
[1748699708987,26.0,154.79,154.75,14.07739928]
[1748699709678,40.07739928,154.78,154.73,14.07739928]
[1748699710593,26.0,154.78,154.73,14.07739928]
[1748699710785,26.0,154.78,154.75,14.07739928]
[1748699710995,26.0,154.78,154.76,14.07739928]
[1748699711167,26.0,154.8,154.76,14.07739928]
[1748699711792,32.46001644,154.8,154.75,14.07739928]
[1748699712773,32.46001644,154.8,154.75,20.53936743]
[1748699714592,14.07739928,154.79,154.74,20.53969412]
[1748699714799,20.53798777,154.79,154.74,20.53969412]
[1748699715094,26.0,154.78,154.74,20.53969412]
[1748699719395,26.0,154.78,154.74,14.07739928]
[1748699719396,32.46084152,154.78,154.74,14.07739928]
[1748699720666,46.5382408,154.78,154.73,14.07739928]
[1748699720997,26.0,154.78,154.74,14.07739928]
[1748699721197,26.0,154.78,154.75,14.07739928]
[1748699722285,26.0,154.78,154.75,20.53930763]
[1748699724997,26.0,154.78,154.75,6.46190835]
[1748699725173,26.0,154.78,154.75,20.53930763]
[1748699729200,14.07739928,154.8,154.75,20.53930763]
[1748699729417,6.21336157,154.83,154.75,20.53930763]
[1748699729418,19.85016579,154.84,154.79,14.07739928]
[1748699729627,6.5503,154.87,154.81,14.07739928]
[1748699729781,53.71739928,154.87,154.82,14.07739928]
[1748699729981,26.0,154.84,154.82,14.07739928]
[1748699730213,60.17457984,154.87,154.82,14.07739928]
[1748699730716,60.17457984,154.87,154.82,20.53641424]
[1748699730717,26.0,154.84,154.82,20.53641424]
[1748699730883,53.9664159,154.88,154.83,14.07739928]
[1748699731090,26.0,154.87,154.83,14.07739928]
[1748699731485,92.0644159,154.88,154.83,14.07739928]
[1748699731693,92.0644159,154.88,154.82,14.07739928]
[1748699731694,40.07739928,154.87,154.82,14.07739928]
[1748699731900,26.0,154.87,154.82,14.07739928]
[1748699732101,46.53463954,154.87,154.82,14.07739928]
[1748699732299,46.53463954,154.87,154.82,20.53649933]
[1748699732498,26.0,154.87,154.84,14.07739928]
[1748699732712,8.14351229,154.89,154.85,14.07739928]
[1748699733010,8.14351229,154.89,154.86,14.07739928]
[1748699733385,34.14351229,154.89,154.86,14.07739928]
[1748699733907,20.53362336,154.89,154.84,14.07739928]
[1748699734299,26.0,154.88,154.85,14.07739928]
[1748699734608,26.0,154.88,154.86,14.07739928]
[1748699737204,26.0,154.88,154.84,14.07739928]
[1748699737802,14.07739928,154.89,154.84,14.07739928]
[1748699738198,86.1532894,154.9,154.85,14.07739928]
[1748699738784,46.5332894,154.9,154.85,14.07739928]
[1748699739180,46.5332894,154.9,154.85,20.53522764]
[1748699739407,40.07739928,154.9,154.85,20.53522764]
[1748699739915,46.53320016,154.9,154.85,14.07739928]
[1748699742094,32.45580088,154.9,154.85,14.07739928]
[1748699742311,46.53320016,154.9,154.85,14.07739928]
[1748699743826,14.07739928,154.88,154.83,25.1083139]
[1748699743990,14.07739928,154.88,154.83,39.18571318]
[1748699745527,20.53377609,154.89,154.84,14.07739928]
[1748699745843,46.53321419,154.9,154.85,14.07739928]
[1748699747113,46.53321419,154.9,154.85,20.53524551]
[1748699747317,46.53319062,154.9,154.86,14.07739928]
[1748699748001,46.53319062,154.9,154.85,14.07739928]
[1748699748002,14.07739928,154.89,154.85,14.07739928]
[1748699748943,14.07739928,154.89,154.85,20.53522669]
[1748699749317,14.07739928,154.89,154.85,14.07739928]
[1748699749812,14.07739928,154.89,154.85,20.53523462]
[1748699750112,40.07739928,154.9,154.85,20.53523462]
[1748699750328,46.5333011,154.9,154.85,20.53523462]
[1748699753526,14.07739928,154.92,154.87,14.07739928]
[1748699753731,26.0,154.89,154.87,14.07739928]
[1748699754253,26.0,154.89,154.86,32.72704814]
[1748699754744,26.0,154.89,154.87,6.45702847]
[1748699755840,26.0,154.89,154.86,39.18432035]
[1748699756836,6.45500687,154.92,154.87,14.07739928]
[1748699757006,46.53240615,154.92,154.87,14.07739928]
[1748699759125,32.45500687,154.92,154.87,14.07739928]
[1748699759334,46.53240615,154.92,154.87,14.07739928]
[1748699759928,14.07739928,154.91,154.86,32.72704814]
[1748699760448,14.07739928,154.9,154.86,18.64964886]
[1748699760736,14.07739928,154.88,154.82,18.0369]
[1748699760943,14.07739928,154.85,154.79,14.07739928]
[1748699761236,26.0,154.86,154.78,14.30411855]
[1748699761237,14.07739928,154.82,154.78,24.58411855]
[1748699761416,14.07739928,154.83,154.78,38.66151783]
[1748699762727,6.45869297,154.84,154.78,38.66151783]
[1748699762924,14.07739928,154.83,154.78,38.66151783]
[1748699763919,14.07739928,154.9,154.83,18.64964886]
[1748699764136,14.07739928,154.89,154.84,14.07739928]
[1748699764358,14.07739928,154.85,154.79,18.64964886]
[1748699764642,14.07739928,154.84,154.79,32.72704814]
[1748699765334,26.0,154.85,154.81,14.07739928]
[1748699765723,26.0,154.85,154.82,6.4591138]
[1748699765927,14.07739928,154.87,154.82,20.53651308]
[1748699766144,40.07739928,154.87,154.82,20.53651308]
[1748699767241,14.07739928,154.86,154.82,6.4591138]
[1748699768654,40.07739928,154.87,154.82,20.53651308]
[1748699770454,40.07739928,154.87,154.8,16.14971791]
[1748699770455,14.07739928,154.84,154.8,6.45967298]
[1748699771445,14.07739928,154.85,154.8,20.53707226]
[1748699771762,14.07739928,154.86,154.81,14.07739928]
[1748699772554,14.07739928,154.86,154.82,6.4591138]
[1748699774830,14.07739928,154.86,154.81,20.5367758]
[1748699777563,14.07739928,154.85,154.8,20.5373476]
[1748699779050,14.07739928,154.85,154.82,6.4591138]
[1748699781159,14.07739928,154.85,154.81,6.45953103]
[1748699781660,32.4570845,154.87,154.78,1.6276]
[1748699781661,14.07739928,154.82,154.78,1.6276]
[1748699781966,14.07739928,154.79,154.76,6.46161798]
[1748699782137,14.07739928,154.79,154.75,6.4618906]
[1748699782336,14.07739928,154.78,154.75,6.4618906]
[1748699782739,14.07739928,154.79,154.75,6.4618906]
[1748699784944,14.07739928,154.8,154.75,20.53928988]
[1748699786562,14.07739928,154.79,154.75,6.4618906]
[1748699792138,14.07739928,154.8,154.75,14.07739928]
[1748699793159,14.07739928,154.8,154.76,6.46161798]
[1748699797980,32.27443334,154.93,154.8,18.64964886]
[1748699797981,14.07739928,154.86,154.8,18.64964886]
[1748699798168,14.07739928,154.86,154.82,14.07739928]
[1748699798474,14.07739928,154.87,154.82,14.07739928]
[1748699799185,14.07739928,154.87,154.83,6.45869663]
[1748699799580,14.07739928,154.86,154.83,6.45869663]
[1748699799875,14.07739928,154.86,154.8,18.64964886]
[1748699799876,14.07739928,154.85,154.81,6.45940538]
[1748699800556,14.07739928,154.84,154.81,6.45940538]
[1748699800974,14.07739928,154.85,154.81,6.45940538]
[1748699801174,14.07739928,154.86,154.81,20.53680466]
[1748699802356,14.07739928,154.86,154.82,14.07739928]
[1748699804178,65.61139024,154.88,154.83,20.53609591]
[1748699804366,51.53399096,154.88,154.84,14.07739928]
[1748699804554,25.53399096,154.88,154.84,14.07739928]
[1748699806373,25.53399096,154.88,154.85,6.45786244]
[1748699807977,39.61139024,154.88,154.84,6.45815653]
[1748699810273,14.07739928,154.87,154.83,7.97594894]
[1748699810478,14.07739928,154.86,154.81,32.72704814]
[1748699810672,14.07739928,154.85,154.8,14.07739928]
[1748699811564,14.07739928,154.85,154.81,14.07739928]
[1748699812089,46.03702847,154.87,154.81,14.07739928]
[1748699812285,14.07739928,154.86,154.81,14.07739928]
[1748699813087,14.07739928,154.86,154.82,6.4591138]
[1748699815088,14.07739928,154.85,154.82,6.4591138]
[1748699815289,14.07739928,154.85,154.81,20.53675842]
[1748699818106,14.07739928,154.86,154.81,20.53675842]
[1748699818305,39.58,154.87,154.83,14.07739928]
[1748699818488,51.53399096,154.88,154.84,14.07739928]
[1748699818682,25.53399096,154.88,154.84,14.07739928]
[1748699820204,14.07739928,154.87,154.82,14.07739928]
[1748699820393,14.07739928,154.86,154.81,30.81675842]
[1748699820590,14.07739928,154.85,154.81,10.28]
[1748699821094,14.07739928,154.85,154.8,20.53717372]
[1748699822015,20.53547367,154.85,154.8,20.53717372]
[1748699822900,14.07739928,154.85,154.8,20.53717372]
[1748699825206,20.53530148,154.85,154.8,20.53717372]
[1748699825708,14.07739928,154.81,154.75,6.46203554]
[1748699826006,14.07739928,154.79,154.75,25.1116844]
[1748699826214,14.07739928,154.78,154.74,11.8152]
[1748699826414,14.07739928,154.77,154.74,10.26]
[1748699826918,14.07739928,154.77,154.73,6.46271625]
[1748699827086,14.07739928,154.77,154.72,39.19018446]
[1748699827285,14.07739928,154.76,154.72,39.19018446]
[1748699827807,14.07739928,154.77,154.72,39.19018446]
[1748699828312,14.07739928,154.78,154.73,14.07739928]
[1748699828701,14.07739928,154.78,154.74,6.46245314]
[1748699830498,144.67893851,154.83,154.77,14.07739928]
[1748699830680,30.79573959,154.84,154.79,14.07739928]
[1748699830884,46.53573959,154.84,154.79,14.07739928]
[1748699831111,40.07739928,154.84,154.79,14.07739928]
[1748699831294,14.07739928,154.83,154.79,14.07739928]
[1748699831703,14.07739928,154.85,154.8,14.07739928]
[1748699832105,40.07739928,154.85,154.8,14.07739928]
[1748699832907,40.07739928,154.85,154.81,6.45953103]
[1748699833713,40.07739928,154.85,154.8,20.53719095]
[1748699833913,14.07739928,154.84,154.8,20.53719095]
[1748699834385,14.07739928,154.84,154.8,6.45979167]
[1748699834589,14.07739928,154.83,154.78,14.07739928]
[1748699835014,14.07739928,154.83,154.79,14.07739928]
[1748699835943,20.53590549,154.84,154.79,14.07739928]
[1748699839003,14.07739928,154.83,154.78,14.07739928]
[1748699839390,6.4591138,154.82,154.77,14.07739928]
[1748699839624,14.07739928,154.81,154.76,1.5829]
[1748699839843,14.07739928,154.8,154.75,30.79927994]
[1748699840196,14.07739928,154.78,154.73,32.72704814]
[1748699840528,14.07739928,154.76,154.72,1.6176]
[1748699840708,14.07739928,154.76,154.71,24.33739928]
[1748699841614,14.07739928,154.76,154.72,6.46312759]
[1748699842219,14.07739928,154.77,154.72,20.54052687]
[1748699844009,14.07739928,154.76,154.71,16.72358238]
[1748699844210,14.07739928,154.76,154.71,30.80098166]
[1748699844518,14.07739928,154.76,154.71,16.72358238]
[1748699844705,14.07739928,154.75,154.71,10.26]
[1748699844906,14.07739928,154.75,154.71,6.46366786]
[1748699846001,6.46164615,154.76,154.71,6.46366786]
[1748699846002,14.07739928,154.76,154.71,20.54106714]
[1748699846404,14.07739928,154.75,154.71,6.46366786]
[1748699847406,14.07739928,154.76,154.71,20.54106714]
[1748699849732,14.07739928,154.75,154.71,6.46366786]
[1748699851032,14.07739928,154.76,154.71,20.54106714]
[1748699856329,14.07739928,154.77,154.72,14.07739928]
[1748699856730,6.46078304,154.78,154.72,14.07739928]
[1748699857029,14.07739928,154.77,154.72,14.07739928]
[1748699858475,14.07739928,154.77,154.73,6.4628708]
[1748699860643,14.07739928,154.77,154.72,20.54053269]
[1748699860820,14.07739928,154.76,154.72,6.46313341]
[1748699862631,14.07739928,154.76,154.71,6.46357428]
[1748699862632,14.07739928,154.75,154.71,6.46357428]
[1748699862832,14.07739928,154.75,154.7,32.72704814]
[1748699863246,14.07739928,154.76,154.71,14.07739928]
[1748699864351,14.07739928,154.76,154.72,6.46328852]
[1748699864744,20.53913997,154.76,154.71,14.07739928]
[1748699864947,14.07739928,154.74,154.7,6.4639994]
[1748699865263,14.07739928,154.74,154.69,22.15948654]
[1748699866756,14.07739928,154.75,154.7,14.07739928]
[1748699866958,32.46174069,154.76,154.7,14.07739928]
[1748699866959,26.0,154.76,154.72,14.07739928]
[1748699867133,169.01633779,154.79,154.74,14.07739928]
[1748699867462,50.33739928,154.79,154.74,14.07739928]
[1748699867758,14.07739928,154.78,154.73,14.07739928]
[1748699868139,14.07739928,154.78,154.74,6.46245314]
[1748699871976,26.0,154.79,154.75,14.07739928]
[1748699873373,8.02442873,154.82,154.78,14.07739928]
[1748699873530,8.02442873,154.82,154.79,14.07739928]
[1748699873731,8.02442873,154.82,154.78,14.07739928]
[1748699873936,22.10182801,154.82,154.78,14.07739928]
[1748699874685,8.02442873,154.82,154.79,14.07739928]
[1748699874972,8.02442873,154.82,154.8,14.07739928]
[1748699876455,8.02442873,154.82,154.79,20.5373991]
[1748699877236,8.02442873,154.82,154.81,14.07739928]
[1748699877439,8.02442873,154.82,154.81,20.53693031]
[1748699878246,14.07739928,154.85,154.81,6.45953103]
[1748699879558,14.07739928,154.84,154.8,6.4598564]
[1748699879763,14.07739928,154.84,154.79,14.07739928]
[1748699879764,14.07739928,154.84,154.79,20.53770326]
[1748699879947,14.07739928,154.83,154.78,14.07739928]
[1748699880149,6.45794094,154.85,154.78,32.72704814]
[1748699880348,14.07739928,154.84,154.79,32.72704814]
[1748699881289,26.0,154.83,154.79,32.72704814]
[1748699881449,26.0,154.83,154.8,20.5373476]
[1748699882158,26.0,154.83,154.8,6.45994832]
[1748699884371,14.07739928,154.84,154.8,6.45994832]
[1748699887146,16.1246308,154.87,154.82,14.07739928]
[1748699887353,16.1246308,154.87,154.83,14.07739928]
[1748699887572,26.0,154.87,154.83,14.07739928]
[1748699887868,41.1063,154.9,154.84,14.07739928]
[1748699887869,14.07739928,154.89,154.84,14.07739928]